fUSD/lending_fUSD_20260320
["ID","MTS","AMOUNT","RATE_DAILY","PERIOD"]
[408626697,1774006243456,-158.1663079,0.00011213,2]
[408626698,1774006243466,-13246.79310833,0.0001124,2]
[408626700,1774006243476,-296.10424,0.00011259,2]
[408626702,1774006243487,-1520.0,0.00011259,2]
[408626704,1774006243496,-1520.0,0.00011259,2]
[408626706,1774006243505,-1520.0,0.00011259,2]
[408626707,1774006243515,-1520.0,0.00011259,2]
[408626708,1774006243524,-163.03244819,0.00011259,2]
[408626709,1774006243534,-1510.66003204,0.00011259,2]
[408626710,1774006243544,-500.0,0.00011273,2]
[408626711,1774006243553,-500.0,0.00011273,2]
[408626712,1774006243564,-151.0,0.00011281,2]
[408626713,1774006243574,-9999.99,0.00011281,2]
[408626714,1774006243583,-160.78,0.00011287,2]
[408626715,1774006243593,-166.66,0.00011288,2]
[408626716,1774006243603,-13736.92445334,0.00011295,2]
[408626717,1774006243613,-23864.42995126,0.00011336,2]
[408626718,1774006243623,-8852.16910836,0.00011336,2]
[408626719,1774006243632,-151.0,0.00011336,2]
[408626720,1774006243642,-151.0,0.00011336,2]
[408626721,1774006243651,-151.0,0.00011336,2]
[408626722,1774006243662,-232.059565,0.00011336,2]
[408626723,1774006243672,-232.059565,0.00011336,2]
[408626724,1774006243682,-232.059565,0.00011336,2]
[408626725,1774006243691,-232.059565,0.00011336,2]
[408626726,1774006243701,-166.66,0.00011397,2]
[408626727,1774006243711,-164.37,0.0001142,2]
[408626728,1774006243721,-296.10425,0.00011459,2]
[408626729,1774006243731,-1394.2,0.00011507,2]
[408626730,1774006243741,-166.66,0.00011507,2]
[408626731,1774006243752,-11967.34821023,0.00011556,2]
[408626732,1774006243763,-151.0,0.00011556,2]
[408626733,1774006243773,-1698.3360726,0.00011648,2]
[408626734,1774006243783,-2341.4427656,0.00011648,2]
[408626735,1774006243793,-296.10424,0.00011659,2]
[408626736,1774006243802,-266.0,0.00011729,2]
[408626737,1774006243812,-164.37,0.00011753,2]
[408626738,1774006243822,-1000.0,0.00011821,2]
[408626739,1774006243833,-296.10425,0.00011859,2]
[408626740,1774006243842,-539.0,0.000119,2]
[408626741,1774006243853,-1261.0,0.00011926,2]
[408626742,1774006243864,-924.0,0.00011926,2]
[408626743,1774006243873,-1215.0,0.00011926,2]
[408626744,1774006243883,-1344.0,0.00011926,2]
[408626745,1774006243893,-6006.0,0.00011926,2]
[408626746,1774006243903,-3513.0,0.00011926,2]
[408626747,1774006243913,-378.9499998,0.00011941,2]
[408626748,1774006243922,-522.4464992,0.00011941,2]
[408626749,1774006243933,-465.0,0.00012,5]
[408626750,1774006243943,-34844.79142799,0.00012,7]
[408626751,1774006245732,-807.51110822,0.00012,7]
[408626752,1774006245787,-4418.88196997,0.00012,7]
[408626753,1774006245842,-720.69661148,0.00012,7]
[408626754,1774006245854,-28028.11980498,0.00012,7]
[408626755,1774006245867,-1180.128,0.00012,7]
[408626756,1774006245953,-155273.37932789,0.00012,7]
[408626787,1774007364876,158.58,5.48e-05,2]
[408626799,1774007432025,-239.0,0.00010729,2]
[408626800,1774007432036,-114.605,0.0001096,2]
[408626801,1774007432077,-35.395,0.0001096,2]
[408626802,1774007432086,-195.0,0.00010992,2]
[408626803,1774007432098,-200.0,0.00011055,2]
[408626804,1774007432108,-163.32,0.00011151,2]
[408626805,1774007432118,-4798.71122607,0.00011157,2]
[408626806,1774007432131,-2259.60877393,0.00011157,2]
[408626807,1774007432141,-2000.0,0.00011193,2]
[408626808,1774007432150,-163.77,0.00011492,2]
[408626809,1774007432160,-150.0,0.00011614,2]
[408626810,1774007432170,-150.0,0.00011614,2]
[408626811,1774007432180,-151.12595548,0.00011614,2]
[408626812,1774007432189,-1524.39028235,0.00011614,2]
[408626813,1774007432199,-239.0,0.00011729,2]
[408626814,1774007432209,-2444.4236725,0.00011793,2]
[408626815,1774007432221,-2299.99999999,0.00011793,2]
[408626816,1774007432234,-265.84703492,0.00011793,2]
[408626817,1774007432258,-474.202935,0.00011793,2]
[408626818,1774007432270,-2480.93689027,0.00011793,2]
[408626819,1774007432281,-289.06035074,0.00011799,2]
[408626826,1774007438088,-500.0,0.00011799,2]
[408626827,1774007438198,-1070.36465114,0.00011799,2]
[408626828,1774007438301,-833.66172791,0.00011799,2]
[408626842,1774007440298,-262.632924,0.00011799,2]
[408626843,1774007440353,-4795.98177148,0.00011799,2]
[408626844,1774007440365,-1949.17,0.000118,2]
[408626845,1774007440376,-3944.05,0.000118,2]
[408626846,1774007440386,-160.978,0.000118,2]
[408626847,1774007440397,-16836.77,0.000118,2]
[408626848,1774007440408,-9999.99,0.000118,2]
[408626849,1774007440418,-150.99,0.000118,2]
[408626850,1774007440430,-301.06,0.000118,2]
[408626851,1774007440440,-18765.00268824,0.000118,2]
[408626852,1774007440451,-1974.4588,0.000118,2]
[408626853,1774007440462,-29349.3374,0.000118,2]
[408626854,1774007440475,-2500.0,0.000118,2]
[408626855,1774007440488,-1644.75,0.00011802,2]
[408626856,1774007440499,-1044.0,0.00011802,2]
[408626857,1774007440509,-1344.0,0.00011802,2]
[408626858,1774007440519,-621.0,0.00011802,2]
[408626859,1774007440530,-1261.0,0.00011802,2]
[408626860,1774007440540,-924.0,0.00011802,2]
[408626861,1774007440550,-1215.0,0.00011802,2]
[408626862,1774007440561,-2465.0,0.00011802,2]
[408626863,1774007440571,-3759.0,0.00011802,2]
[408626864,1774007440581,-195.0,0.00011802,2]
[408626865,1774007440592,-250.0,0.00011802,2]
[408626866,1774007440602,-5000.0,0.00011802,2]
[408626867,1774007440612,-1652.7465014,0.00011848,2]
[408626868,1774007440623,-500.0,0.00011899,2]
[408626869,1774007440633,-373.75298115,0.00011899,2]
[408626870,1774007440643,-500.0,0.00011899,2]
[408626871,1774007440654,-500.0,0.00011899,2]
[408626872,1774007440664,-500.0,0.00011899,2]
[408626873,1774007440674,-500.0,0.00011899,2]
[408626874,1774007440688,-500.0,0.00011899,2]
[408626875,1774007440698,-500.0,0.00011899,2]
[408626876,1774007440708,-500.0,0.00011899,2]
[408626877,1774007440719,-500.0,0.00011899,2]
[408626878,1774007440730,-500.0,0.00011899,2]
[408626879,1774007440740,-500.0,0.00011899,2]
[408626880,1774007440751,-500.0,0.00011899,2]
[408626881,1774007440763,-500.0,0.00011899,2]
[408626882,1774007440774,-500.0,0.00011899,2]
[408626883,1774007440784,-500.0,0.00011899,2]
[408626884,1774007440794,-500.0,0.00011899,2]
[408626885,1774007440804,-500.0,0.00011899,2]
[408626886,1774007440814,-500.0,0.00011899,2]
[408626887,1774007440824,-500.0,0.00011899,2]
[408626888,1774007440834,-541.58117005,0.00011899,2]
[408626889,1774007440844,-500.0,0.00011899,2]
[408626890,1774007440855,-500.0,0.00011899,2]
[408626891,1774007440864,-500.0,0.00011899,2]
[408626892,1774007440874,-500.0,0.00011899,2]
[408626893,1774007440884,-500.0,0.00011899,2]
[408626894,1774007440894,-500.0,0.00011899,2]
[408626895,1774007440904,-500.0,0.00011899,2]
[408626896,1774007440914,-500.0,0.00011899,2]
[408626897,1774007440923,-500.0,0.00011899,2]
[408626898,1774007440933,-500.0,0.00011899,2]
[408626899,1774007440943,-500.0,0.00011899,2]
[408626900,1774007440953,-500.0,0.00011899,2]
[408626901,1774007440964,-500.0,0.00011899,2]
[408626902,1774007440974,-500.0,0.00011899,2]
[408626903,1774007440984,-500.0,0.00011899,2]
[408626904,1774007440995,-429.96300042,0.00011899,2]
[408626905,1774007441005,-500.0,0.00011899,2]
[408626906,1774007441015,-280.12452389,0.00011899,2]
[408626907,1774007441025,-500.0,0.00011899,2]
[408626908,1774007441035,-537.96824162,0.00011899,2]
[408626909,1774007441045,-500.0,0.00011899,2]
[408626910,1774007441055,-167.94315491,0.00011899,2]
[408626911,1774007441067,-587.0,0.000119,5]
[408626912,1774007441076,-463.0,0.000119,5]
[408626913,1774007441086,-6835.38176684,0.000119,2]
[408626916,1774007441149,-415.0,0.00011802,2]
[408626917,1774007441160,-1137.40325463,0.000119,2]
[408626940,1774007446023,-9253.20065759,0.000119,2]
[408626941,1774007446077,-8521.48374736,0.000119,2]
[408626942,1774007446089,-6401.21255583,0.000119,2]
[408626943,1774007446101,-1276.825892,0.000119,2]
[408626944,1774007446113,-605.31448318,0.000119,2]
[408626945,1774007446132,-479.9694267,0.000119,2]
[408626946,1774007446144,-5753.1683,0.000119,2]
[408626947,1774007446155,-70397.73370247,0.000119,2]
[408626948,1774007446167,-9000.0,0.000119,2]
[408626949,1774007446395,-14078.0,0.000119,2]
[408626950,1774007446407,-7732.85468392,0.000119,2]
[408626957,1774008583445,-150.0,0.000107,2]
[408626964,1774008632808,-215.0,0.00010729,2]
[408626965,1774008632820,-166.66,0.00010959,2]
[408626966,1774008632829,-166.66,0.00011121,2]
[408626967,1774008632839,-166.66,0.00011282,2]
[408626968,1774008632849,-166.66,0.00011444,2]
[408626969,1774008632858,-1346.16,0.00011507,2]
[408626970,1774008632868,-42.20000004,0.00011602,2]
[408626972,1774008638507,-134.96080669,0.00011602,2]
[408626973,1774008638519,-166.66,0.00011606,2]
[408626974,1774008638529,-6006.0,0.00011652,2]
[408626975,1774008638540,-2465.0,0.00011652,2]
[408626976,1774008638550,-8161.1415,0.00011702,2]
[408626977,1774008638563,-2333.70574503,0.00011702,2]
[408626978,1774008638574,-215.0,0.00011729,2]
[408626979,1774008638582,-166.66,0.00011768,2]
[408626980,1774008638592,-744.88978382,0.0001179,2]
[408626981,1774008638601,-26794.7165,0.000118,2]
[408626982,1774008638611,-1504.0,0.000118,2]
[408626983,1774008638621,-271.0,0.00011802,2]
[408626984,1774008638631,-150.0,0.00011802,2]
[408626985,1774008638641,-184.459,0.00011802,2]
[408626986,1774008638650,-621.0,0.00011802,2]
[408626987,1774008638660,-3511.0,0.00011802,2]
[408626988,1774008638669,-1344.0,0.00011802,2]
[408626989,1774008638679,-763.614,0.00011802,2]
[408626990,1774008638689,-1215.0,0.00011802,2]
[408626992,1774008638699,-924.0,0.00011802,2]
[408626994,1774008638710,-250.0,0.00011802,2]
[408626996,1774008638719,-157.87765431,0.0001182,2]
[408626997,1774008638729,-500.0,0.00011863,2]
[408626998,1774008638738,-1000.0,0.000119,2]
[408626999,1774008638748,-214.4442,0.000119,2]
[408627000,1774008638758,-790.3606,0.000119,2]
[408627001,1774008638768,-6976.53128277,0.000119,2]
[408627002,1774008638777,-201.33333333,0.00011941,2]
[408627003,1774008638786,-150.0,0.00011941,2]
[408627004,1774008638796,-17174.03019863,0.00011941,2]
[408627005,1774008638806,-197.40283,0.00011941,2]
[408627006,1774008638815,-111.21256554,0.00011941,2]
[408627014,1774008640821,-3755.87156675,0.00011652,2]
[408627015,1774008640875,-3.12843325,0.00011652,2]
[408627016,1774008640884,-388.78743446,0.00011941,2]
[408627017,1774008640894,-500.0,0.00011941,2]
[408627018,1774008640904,-245.58413229,0.00011941,2]
[408627019,1774008640915,-254.41586771,0.00011941,2]
[408627020,1774008640925,-500.0,0.00011941,2]
[408627021,1774008640935,-341.78313229,0.00011941,2]
[408627035,1774008643361,-1000.0,0.000119,2]
[408627036,1774008643372,-419.21686771,0.00011941,2]
[408627037,1774008643382,-886.53689814,0.0001196,2]
[408627038,1774008643414,-455.91310186,0.0001196,2]
[408627039,1774008643424,-829.98709775,0.00012,7]
[408627051,1774008645322,-1462.0,0.00012,7]
[408627052,1774008645376,-475.0,0.00012,7]
[408627053,1774008645389,-565.6000001,0.00012,7]
[408627054,1774008645401,-1093.9249713,0.00012,7]
[408627055,1774008645413,-2856.80867312,0.00012,7]
[408627056,1774008645641,-2356.04585237,0.00012,7]
[408627062,1774008910359,150.0,0.00016299,120]
[408627063,1774009135771,3638.8154122,0.00012575,10]
[408627066,1774009663847,500.0,9e-05,2]
[408627067,1774009673065,500.0,9e-05,2]
[408627068,1774009685126,349.0,9e-05,2]
[408627069,1774009720243,393.6204456,7.888e-05,2]
[408627070,1774009736611,173.82,8.457e-05,2]
[408627086,1774009831455,-194.0,0.00010192,2]
[408627087,1774009831466,-311.56,0.000102,2]
[408627088,1774009831476,-242.44966555,0.00010508,2]
[408627089,1774009831488,-664.54991355,0.00010508,2]
[408627090,1774009831501,-1093.0004209,0.00010508,2]
[408627091,1774009831511,-278.06,0.00010576,2]
[408627092,1774009831522,-235.66685068,0.00010609,2]
[408627093,1774009831534,-264.33314932,0.00010609,2]
[408627094,1774009831545,-1734.17427553,0.00010683,2]
[408627095,1774009831557,-750.43396447,0.00010683,2]
[408627096,1774009831566,-1200.0,0.00010736,2]
[408627097,1774009831577,-1690.15784432,0.00010737,2]
[408627098,1774009831592,-2949.01215568,0.00010737,2]
[408627099,1774009831602,-671.22,0.00010823,2]
[408627100,1774009831611,-167.29,0.0001096,2]
[408627101,1774009831622,-250.72299322,0.00010978,2]
[408627102,1774009831632,-178.64,0.00011121,2]
[408627103,1774009831649,-194.0,0.00011192,2]
[408627104,1774009831660,-150.0,0.000112,2]
[408627105,1774009831670,-5709.88682108,0.00011205,2]
[408627107,1774009831679,-174.61919142,0.00011205,2]
[408627108,1774009831689,-151.0,0.00011205,2]
[408627110,1774009831699,-250.0,0.00011211,2]
[408627111,1774009831709,-150.0,0.00011424,2]
[408627112,1774009831719,-150.0,0.00011425,2]
[408627113,1774009831728,-250.0,0.00011425,2]
[408627114,1774009831738,-500.0,0.00011425,2]
[408627115,1774009831748,-228.51274576,0.00011425,2]
[408627117,1774009831764,-271.48725424,0.00011425,2]
[408627119,1774009831774,-36.80480918,0.00011425,2]
[408627121,1774009831786,-406.65926142,0.00011425,2]
[408627123,1774009831796,-521.03697566,0.00011496,2]
[408627126,1774009831808,-384.5688,0.00011496,2]
[408627128,1774009831819,-3765.14915945,0.00011496,2]
[408627130,1774009831829,-880320.72130445,0.00011502,2]
[408627135,1774009837612,-500.0,0.00011502,5]
[408627136,1774009837643,-126.0,0.00011502,5]
[408627137,1774009837653,-4875.9128725,0.00011502,2]
[408627138,1774009837720,-4900.0,0.00011502,2]
[408627141,1774009840112,-1825.86696782,0.00011502,2]
[408627142,1774009840959,-972.15998328,0.00011502,2]
[408627152,1774009842619,-709.17,0.00011502,2]
[408627153,1774009842632,-2151.68418487,0.00011502,2]
[408627154,1774009842644,-5508.31361579,0.00011502,2]
[408627155,1774009845433,-24701.0419195,0.00011502,2]
[408627156,1774009845447,-70513.58458661,0.00011502,2]
[408627157,1774009845543,-4296.75088854,0.00011502,2]
[408627158,1774009845555,-12957.25836996,0.00011502,2]
[408627163,1774010314117,-200.0,0.00010873,2]
[408627164,1774010314144,-300.0,0.00010998,2]
[408627165,1774010314167,-1200.0,0.00010999,2]
[408627166,1774010314189,-300.0,0.00010999,2]
[408627167,1774010314211,-150.0,0.00010999,2]
[408627168,1774010314232,-300.0,0.00010999,2]
[408627169,1774010331737,-19550.0,0.00011,7]
[408627171,1774011031819,-174.0,0.00010192,2]
[408627172,1774011031830,-1189.17503185,0.00010558,2]
[408627185,1774011032123,-656.36496815,0.00010558,2]
[408627186,1774011032135,-400.0,0.000108,3]
[408627187,1774011032146,-500.0,0.00010873,2]
[408627188,1774011032157,-900.0,0.000109,3]
[408627189,1774011032169,-166250.4478,0.000109,2]
[408627190,1774011032183,-150.0,0.00010999,2]
[408627191,1774011032195,-65748.42996152,0.00011,7]
[408627192,1774011032206,-174.0,0.00011192,2]
[408627193,1774011032216,-250.0,0.00011211,2]
[408627194,1774011032228,-151.0,0.0001127,2]
[408627195,1774011032240,-4086.91056816,0.00011295,2]
[408627196,1774011032251,-418.0,0.000113,2]
[408627197,1774011032262,-7132.47448148,0.00011301,2]
[408627198,1774011032272,-2500.0,0.00011302,2]
[408627199,1774011032286,-500.0,0.00011395,2]
[408627200,1774011032299,-151.0,0.00011395,2]
[408627201,1774011032310,-7965.41053268,0.00011395,2]
[408627202,1774011032321,-151.0,0.00011395,2]
[408627203,1774011032334,-157.87765431,0.00011399,2]
[408627204,1774011032343,-500.0,0.00011401,2]
[408627205,1774011032353,-500.0,0.00011401,2]
[408627206,1774011032362,-500.0,0.00011401,2]
[408627207,1774011032373,-500.0,0.00011401,2]
[408627208,1774011032383,-250.0,0.00011401,2]
[408627209,1774011032394,-500.0,0.00011401,2]
[408627210,1774011032404,-500.0,0.00011401,2]
[408627211,1774011032415,-500.0,0.00011401,2]
[408627212,1774011032425,-367.51774133,0.00011401,2]
[408627213,1774011032436,-500.0,0.00011401,2]
[408627214,1774011032447,-500.0,0.00011401,2]
[408627215,1774011032458,-500.0,0.00011401,2]
[408627216,1774011032468,-500.0,0.00011401,2]
[408627217,1774011032479,-500.0,0.00011401,2]
[408627218,1774011032490,-650.0,0.00011401,2]
[408627219,1774011032501,-630.39015314,0.00011401,2]
[408627220,1774011032511,-500.0,0.00011401,2]
[408627221,1774011032522,-500.0,0.00011401,2]
[408627222,1774011032532,-500.0,0.00011401,2]
[408627223,1774011032542,-500.0,0.00011401,2]
[408627224,1774011032555,-500.0,0.00011401,2]
[408627225,1774011032565,-500.0,0.00011401,2]
[408627226,1774011032575,-500.0,0.00011401,2]
[408627227,1774011032585,-500.0,0.00011401,2]
[408627228,1774011032596,-500.0,0.00011401,2]
[408627229,1774011032606,-500.0,0.00011401,2]
[408627230,1774011032616,-242.21720501,0.00011401,2]
[408627231,1774011032626,-500.0,0.00011401,2]
[408627232,1774011032636,-582.85260957,0.00011401,2]
[408627233,1774011032646,-500.0,0.00011401,2]
[408627234,1774011032656,-500.0,0.00011401,2]
[408627235,1774011032666,-500.0,0.00011401,2]
[408627236,1774011032676,-500.0,0.00011401,2]
[408627237,1774011032686,-500.0,0.00011401,2]
[408627238,1774011032696,-500.0,0.00011401,2]
[408627239,1774011032706,-500.0,0.00011401,2]
[408627240,1774011032717,-500.0,0.00011401,2]
[408627241,1774011032726,-537.96824162,0.00011401,2]
[408627242,1774011032735,-232.05,0.00011401,2]
[408627243,1774011032745,-151.0,0.00011401,2]
[408627244,1774011032755,-151.0,0.00011401,2]
[408627245,1774011032768,-473542.41721109,0.00011402,2]
[408627246,1774011032781,-555.59417147,0.00011402,2]
[408627247,1774011032853,-1675.51726259,0.00011402,2]
[408627248,1774011032865,-206827.1297284,0.00011402,2]
[408627249,1774011032884,-1647.27417128,0.00011402,2]
[408627250,1774011037784,-6543.9,0.00011402,2]
[408627251,1774011037798,-847.0,0.00011402,2]
[408627252,1774011037811,-585.46002988,0.00011402,2]
[408627253,1774011037823,-956.1785563,0.00011402,2]
[408627254,1774011037838,-558.69299275,0.00011402,2]
[408627255,1774011037902,-64298.57287624,0.00011402,2]
[408627256,1774011037912,-151.0,0.00011402,2]
[408627257,1774011037934,-173.238253,0.00011402,2]
[408627258,1774011037945,-232.96021,0.00011402,2]
[408627259,1774011037955,-232.96021,0.00011402,2]
[408627261,1774011037967,-232.96021,0.00011402,2]
[408627263,1774011037976,-232.96021,0.00011402,2]
[408627265,1774011037987,-220.301895,0.00011402,2]
[408627267,1774011037998,-220.301895,0.00011402,2]
[408627270,1774011038009,-220.301895,0.00011402,2]
[408627272,1774011038019,-220.301895,0.00011402,2]
[408627274,1774011038030,-151.0,0.00011402,2]
[408627276,1774011038041,-153.695679,0.00011402,2]
[408627278,1774011038051,-151.0,0.00011402,2]
[408627280,1774011038061,-151.0,0.00011402,2]
[408627282,1774011038072,-500.0,0.0001145,2]
[408627284,1774011038082,-8260.13072239,0.0001145,2]
[408627286,1774011038093,-212.73164514,0.0001145,2]
[408627288,1774011038106,-500.0,0.00011473,2]
[408627290,1774011038116,-196.85238366,0.00011473,2]
[408627292,1774011038127,-11715.3862409,0.00011482,2]
[408627294,1774011038136,-708.8522136,0.00011482,2]
[408627296,1774011038147,-71755.35559964,0.00011482,2]
[408627298,1774011038159,-4172.34141883,0.00011482,2]
[408627300,1774011038171,-6552.18,0.00011482,2]
[408627494,1774011040111,-1381.81896357,0.00011482,2]
[408627496,1774011040123,-1185.68021751,0.00011482,2]
[408627743,1774011042861,-269.5087805,0.00011482,2]
[408627847,1774011045667,-13286.7,0.00011482,2]
[408627848,1774011045972,-11636.40285672,0.00011482,2]
[408627853,1774011241391,3999.0,9e-05,2]
[408627854,1774011286158,1999.0,0.00012575,10]
[408627855,1774011297720,3999.0,9e-05,2]
[408627856,1774011333676,1083.33,9e-05,2]
[408627857,1774011440877,10000.0,9e-05,2]
[408627858,1774011449894,10000.0,9e-05,2]
[408627859,1774011458358,10000.0,9e-05,2]
[408627860,1774011467881,10000.0,9e-05,2]
[408627861,1774011475088,10000.0,9e-05,2]
[408627862,1774011497391,600.0,9e-05,2]
[408627878,1774012231860,-232.0,9.941e-05,2]
[408627881,1774012231871,-142.73643676,0.00010041,2]
[408627885,1774012231911,-1010.83120924,0.00010041,2]
[408627886,1774012231924,-466.5359,0.00010092,2]
[408627887,1774012231934,-170.0,0.00010192,2]
[408627888,1774012231945,-335.61,0.00010353,2]
[408627889,1774012231955,-257.02289076,0.00010551,2]
[408627890,1774012232023,-385.97710924,0.00010551,2]
[408627891,1774012232034,-855.35388798,0.00010551,2]
[408627892,1774012232078,-344.64611202,0.00010551,2]
[408627894,1774012232089,-300.0,0.00010551,2]
[408627896,1774012232100,-500.0,0.00010552,2]
[408627898,1774012232110,-500.0,0.00010552,2]
[408627900,1774012232122,-151.0,0.00010552,2]
[408627902,1774012232132,-151.0,0.00010552,2]
[408627904,1774012232143,-252.718551,0.00010552,2]
[408627905,1774012232153,-258.88775998,0.00010552,2]
[408627907,1774012232164,-46215.37,0.00010558,2]
[408627909,1774012232174,-178.64,0.00010558,2]
[408627911,1774012232184,-500.0,0.00010673,2]
[408627913,1774012232195,-500.25065648,0.00010673,2]
[408627915,1774012232206,-500.0,0.00010673,2]
[408627917,1774012232219,-500.0,0.00010673,2]
[408627919,1774012232230,-501.38646377,0.00010673,2]
[408627921,1774012232241,-163.47103582,0.00010673,2]
[408627923,1774012232256,-500.0,0.00010673,2]
[408627925,1774012232266,-500.0,0.00010673,2]
[408627927,1774012232278,-218.59404172,0.00010673,2]
[408627928,1774012232288,-240.86664901,0.00010673,2]
[408627929,1774012232297,-500.0,0.00010673,2]
[408627930,1774012232314,-500.0,0.00010673,2]
[408627931,1774012232326,-500.0,0.00010673,2]
[408627932,1774012232336,-500.0,0.00010673,2]
[408627933,1774012232347,-500.0,0.00010699,2]
[408627934,1774012232358,-169.55204351,0.00010699,2]
[408627935,1774012232368,-500.0,0.00010699,2]
[408627936,1774012232378,-500.0,0.00010699,2]
[408627937,1774012232388,-500.0,0.00010699,2]
[408627938,1774012232398,-500.0,0.00010699,2]
[408627939,1774012232408,-533.70220819,0.00010699,2]
[408627940,1774012232418,-500.0,0.00010699,2]
[408627941,1774012232428,-167.94315491,0.00010699,2]
[408627942,1774012232438,-500.0,0.00010699,2]
[408627943,1774012232447,-500.0,0.00010699,2]
[408627944,1774012232457,-280.12452389,0.00010699,2]
[408627945,1774012232467,-500.0,0.00010699,2]
[408627946,1774012232476,-500.0,0.00010699,2]
[408627947,1774012232486,-500.0,0.00010699,2]
[408627948,1774012232495,-170.88536018,0.00010699,2]
[408627949,1774012232505,-500.0,0.00010699,2]
[408627950,1774012232515,-500.0,0.00010699,2]
[408627951,1774012232525,-500.0,0.00010699,2]
[408627952,1774012232535,-500.0,0.00010699,2]
[408627953,1774012232544,-500.0,0.00010699,2]
[408627954,1774012232554,-500.0,0.00010699,2]
[408627955,1774012232566,-500.0,0.00010699,2]
[408627956,1774012232576,-500.0,0.00010699,2]
[408627957,1774012232586,-500.0,0.00010699,2]
[408627958,1774012232596,-500.0,0.00010699,2]
[408627959,1774012232605,-500.0,0.00010699,2]
[408627960,1774012232615,-500.0,0.00010699,2]
[408627961,1774012232624,-500.0,0.00010699,2]
[408627962,1774012232634,-500.0,0.00010699,2]
[408627963,1774012232644,-500.0,0.00010699,2]
[408627964,1774012232653,-478.16350997,0.00010699,2]
[408627965,1774012232663,-500.0,0.00010699,2]
[408627966,1774012232673,-500.0,0.00010699,2]
[408627967,1774012232683,-500.0,0.00010699,2]
[408627968,1774012232693,-500.0,0.00010699,2]
[408627969,1774012232702,-500.0,0.00010699,2]
[408627970,1774012232712,-500.0,0.00010699,2]
[408627971,1774012232722,-500.0,0.00010699,2]
[408627972,1774012232731,-500.0,0.00010699,2]
[408627973,1774012232741,-500.0,0.00010699,2]
[408627974,1774012232751,-500.0,0.00010699,2]
[408627975,1774012232760,-500.0,0.00010699,2]
[408627976,1774012232769,-500.0,0.00010699,2]
[408627977,1774012232778,-500.0,0.00010699,2]
[408627978,1774012232788,-500.0,0.00010699,2]
[408627979,1774012232798,-500.0,0.00010699,2]
[408627980,1774012232812,-500.0,0.00010699,2]
[408627981,1774012232821,-500.0,0.00010699,2]
[408627982,1774012232833,-500.0,0.00010699,2]
[408627983,1774012232843,-500.0,0.00010699,2]
[408627984,1774012232853,-500.0,0.00010699,2]
[408627985,1774012232863,-500.0,0.00010699,2]
[408627986,1774012232872,-500.0,0.00010699,2]
[408627987,1774012232881,-500.0,0.00010699,2]
[408627988,1774012232891,-500.0,0.00010699,2]
[408627989,1774012232901,-500.0,0.00010699,2]
[408627990,1774012232910,-500.0,0.00010699,2]
[408627991,1774012232920,-500.0,0.00010699,2]
[408627992,1774012232929,-500.0,0.00010699,2]
[408627993,1774012232939,-500.0,0.00010699,2]
[408627994,1774012232948,-500.0,0.00010699,2]
[408627995,1774012232957,-500.0,0.00010699,2]
[408627996,1774012232967,-500.0,0.00010699,2]
[408627997,1774012232976,-500.0,0.00010699,2]
[408627998,1774012232985,-500.0,0.00010699,2]
[408627999,1774012232994,-600.0,0.00010699,2]
[408628000,1774012233003,-500.0,0.00010699,2]